bitfinex/quotes_BTCUSD_20250703
["timestamp","ask_amount","ask_price","bid_price","bid_amount"]
[1751526971171,0.26811724,109370.0,109360.0,0.0436773]
[1751526972207,0.25897456,109370.0,109360.0,0.0436773]
[1751526974431,0.07610906,109370.0,109360.0,0.0436773]
[1751526974850,0.25897456,109370.0,109360.0,0.0436773]
[1751526975048,0.07610889,109370.0,109360.0,0.0436773]
[1751526975273,0.06696529,109370.0,109360.0,0.0436773]
[1751526975453,0.02128545,109370.0,109360.0,0.0436773]
[1751526975663,0.06692545,109370.0,109360.0,0.0436773]
[1751526975867,0.06692545,109370.0,109360.0,0.04596332]
[1751526976243,0.08521157,109370.0,109360.0,0.04596332]
[1751526977047,0.08521166,109370.0,109360.0,0.04596332]
[1751526977342,0.07606847,109370.0,109360.0,0.04596332]
[1751526977542,0.07606855,109370.0,109360.0,0.04596332]
[1751526977777,0.03042847,109370.0,109360.0,0.04596332]
[1751526977986,0.003,109370.0,109360.0,0.36518934]
[1751526978405,0.003,109370.0,109360.0,0.0436773]
[1751526978601,0.003,109370.0,109360.0,0.36518934]
[1751526978804,0.003,109370.0,109360.0,0.0436773]
[1751526978956,0.003,109370.0,109360.0,0.36518934]
[1751526979152,0.003,109370.0,109360.0,0.39267634]
[1751526980855,0.003,109370.0,109360.0,0.0711643]
[1751526982632,0.003,109370.0,109360.0,0.39267634]
[1751526982787,0.003,109370.0,109360.0,0.0711643]
[1751526984110,0.003,109370.0,109360.0,0.08054237]
[1751526984598,0.003,109370.0,109360.0,0.0711643]
[1751526987659,0.003,109370.0,109360.0,0.08046899]
[1751526988881,0.003,109370.0,109360.0,0.0711643]
[1751526992966,0.003,109370.0,109360.0,0.08038735]
[1751526993320,0.003,109370.0,109360.0,0.0711643]
[1751526995914,0.003,109370.0,109360.0,0.37251201]
[1751526997757,0.003,109370.0,109360.0,0.3818699]
[1751527003491,0.003,109370.0,109360.0,0.68321761]
[1751527003668,0.003,109370.0,109360.0,0.3818699]
[1751527004320,0.30134771,109380.0,109360.0,0.3818699]
[1751527004489,0.002,109370.0,109360.0,0.3818699]
[1751527006011,0.003,109370.0,109360.0,0.3828699]
[1751527006825,0.003,109370.0,109360.0,0.37351201]
[1751527013438,0.003,109370.0,109360.0,0.37341201]
[1751527019874,0.003,109370.0,109360.0,0.0720643]
[1751527020106,0.003,109370.0,109360.0,0.37341201]
[1751527020303,0.003,109370.0,109360.0,0.34211201]
[1751527025705,0.003,109370.0,109360.0,0.0407643]
[1751527025869,0.003,109370.0,109360.0,0.34211201]
[1751527027505,0.003,109370.0,109360.0,0.37331201]
[1751527028351,0.002,109370.0,109360.0,0.37231201]
[1751527028666,0.003,109370.0,109360.0,0.37331201]
[1751527028808,0.001,109370.0,109360.0,0.37331201]
[1751527030034,0.002,109370.0,109360.0,0.37531201]
[1751527030777,0.002,109370.0,109360.0,0.35991201]
[1751527031955,0.002,109370.0,109360.0,0.75269665]
[1751527032141,0.002,109370.0,109360.0,0.76829665]
[1751527037861,0.002,109370.0,109360.0,0.16560123]
[1751527038066,0.002,109370.0,109360.0,0.16788725]
[1751527038363,0.002,109370.0,109360.0,0.46923496]
[1751527038594,0.002,109370.0,109360.0,0.46694894]
[1751527039076,0.002,109370.0,109360.0,0.16560123]
[1751527039292,0.002,109370.0,109360.0,0.16788725]
[1751527039420,0.002,109370.0,109360.0,0.46923496]
[1751527039624,0.002,109370.0,109360.0,0.46694894]
[1751527041384,0.002,109370.0,109360.0,0.16560123]
[1751527041578,0.002,109370.0,109360.0,0.46694894]
[1751527045541,0.002,109370.0,109360.0,0.45134894]
[1751527045723,0.002,109370.0,109360.0,0.43554894]
[1751527047612,0.002,109370.0,109360.0,0.13420123]
[1751527048010,0.002,109370.0,109360.0,0.32032123]
[1751527048214,0.002,109370.0,109360.0,0.62166894]
[1751527048948,0.002,109370.0,109360.0,0.32032123]
[1751527049148,0.002,109370.0,109360.0,0.62166894]
[1751527051066,0.0184,109370.0,109360.0,0.62166894]
[1751527051259,0.0184,109370.0,109360.0,0.32032123]
[1751527051464,0.0184,109370.0,109360.0,0.62166894]
[1751527052273,0.0184,109370.0,109360.0,0.32032123]
[1751527054587,0.0184,109370.0,109360.0,0.62166894]
[1751527058451,0.31974771,109370.0,109360.0,0.13420123]
[1751527058645,0.33524771,109370.0,109360.0,0.2288443]
[1751527059976,0.33524771,109370.0,109360.0,0.0427643]
[1751527060496,0.33524771,109370.0,109360.0,0.2288443]
[1751527061158,0.35353291,109370.0,109360.0,0.2288443]
[1751527061361,0.34439023,109370.0,109360.0,0.2288443]
[1751527061800,0.33524771,109370.0,109360.0,0.2288443]
[1751527071074,0.34422285,109370.0,109360.0,0.2288443]
[1751527071644,0.33524771,109370.0,109360.0,0.2288443]
[1751527072256,0.0339,109370.0,109360.0,0.2288443]
[1751527072455,0.33524771,109370.0,109360.0,0.2288443]
[1751527076283,0.0339,109370.0,109360.0,0.2013573]
[1751527076509,0.33524771,109370.0,109360.0,0.2013573]
[1751527076998,0.33524771,109370.0,109360.0,0.2288433]
[1751527077377,0.33524771,109370.0,109360.0,0.0427633]
[1751527078740,0.34439039,109370.0,109360.0,0.0152773]
[1751527078911,0.35353324,109370.0,109360.0,0.0152773]
[1751527079319,0.34439039,109370.0,109360.0,0.0152773]
[1751527081148,0.35353324,109370.0,109360.0,0.0152773]
[1751527081956,0.34439039,109370.0,109360.0,0.0152773]
[1751527082708,0.37403851,109370.0,109360.0,0.0152773]
[1751527082920,0.85825231,109370.0,109360.0,0.0152773]
[1751527083442,1.03518946,109370.0,109360.0,0.0152773]
[1751527083815,1.02604636,109370.0,109360.0,0.0152773]
[1751527085632,0.72469865,109370.0,109360.0,0.0152773]
[1751527085966,1.07156636,109370.0,109360.0,0.0152773]
[1751527087153,1.50300329,109370.0,109360.0,0.0152773]
[1751527087330,1.86410152,109370.0,109360.0,0.0152773]
[1751527087535,1.33115381,109370.0,109360.0,0.0152773]
[1751527087740,1.53377201,109370.0,109360.0,0.0152773]
[1751527087963,1.53277201,109370.0,109360.0,0.0142773]
[1751527088416,1.53277201,109370.0,109360.0,0.0152773]
[1751527090520,1.50100329,109370.0,109360.0,0.0132773]
[1751527090654,1.50300329,109370.0,109360.0,0.0142773]
[1751527100441,6.87864237,109370.0,109360.0,0.0142773]
[1751527100845,6.89946237,109370.0,109360.0,0.0142773]
[1751527101059,6.87048057,109370.0,109360.0,0.0142773]
[1751527101468,6.87048057,109370.0,109360.0,0.0132773]
[1751527101675,6.86848057,109370.0,109360.0,0.0132773]
[1751527101885,6.87448057,109370.0,109360.0,0.0142773]
[1751527102528,6.87448057,109370.0,109360.0,0.0132773]
[1751527102934,6.87748057,109370.0,109360.0,0.0142773]
[1751527121166,5.96207527,109370.0,109360.0,0.0142773]
[1751527121392,6.8661184,109370.0,109360.0,0.0142773]
[1751527121910,6.56477069,109370.0,109360.0,0.0142773]
[1751527122665,6.8661184,109370.0,109360.0,0.0142773]
[1751527123701,6.6345184,109370.0,109360.0,0.0142773]
[1751527123904,6.8661184,109370.0,109360.0,0.0142773]
[1751527124081,6.95755533,109370.0,109360.0,0.0142773]
[1751527127496,6.65620762,109370.0,109360.0,0.0142773]
[1751527128687,6.26704112,109370.0,109360.0,0.0142773]
[1751527128913,1.46674112,109370.0,109360.0,0.0142773]
[1751527129330,1.23514112,109370.0,109360.0,0.0142773]
[1751527129493,1.38514112,109370.0,109360.0,0.0142773]
[1751527129678,1.61674112,109370.0,109360.0,0.0142773]
[1751527130109,1.38514112,109370.0,109360.0,0.0142773]
[1751527130487,1.61674112,109370.0,109360.0,0.0142773]
[1751527131256,1.38514112,109370.0,109360.0,0.0142773]
[1751527131400,1.61674112,109370.0,109360.0,0.0142773]
[1751527131609,1.38514112,109370.0,109360.0,0.0142773]
[1751527131808,1.61674112,109370.0,109360.0,0.0142773]
[1751527132264,1.41604112,109370.0,109360.0,0.0142773]
[1751527132542,1.64764112,109370.0,109360.0,0.0142773]
[1751527133504,1.41604112,109370.0,109360.0,0.0142773]
[1751527133753,1.64764112,109370.0,109360.0,0.0142773]
[1751527147969,1.63204112,109370.0,109360.0,0.0142773]
[1751527149163,1.61674112,109370.0,109360.0,0.0142773]
[1751527158107,1.63284112,109370.0,109360.0,0.0142773]
[1751527161613,1.64934112,109370.0,109360.0,0.0142773]
[1751527162223,1.74077805,109370.0,109360.0,0.0142773]
[1751527163712,1.64934112,109370.0,109360.0,0.0142773]
[1751527164327,1.0466457,109370.0,109360.0,0.0142773]
[1751527164553,1.64934112,109370.0,109360.0,0.0142773]
[1751527165306,1.64926112,109370.0,109360.0,0.0142773]
[1751527169792,1.64926112,109370.0,109360.0,0.0092773]
[1751527169994,1.74069805,109370.0,109360.0,0.0092773]
[1751527173311,1.13800263,109370.0,109360.0,0.0092773]
[1751527173529,1.74069805,109370.0,109360.0,0.0092773]
[1751527174681,1.64926112,109370.0,109360.0,0.0092773]
[1751527177557,1.64926112,109370.0,109360.0,0.0094773]
[1751527177765,1.64966112,109370.0,109360.0,0.0094773]
[1751527179387,1.0469657,109370.0,109360.0,0.0094773]
[1751527179681,1.64966112,109370.0,109360.0,0.0094773]
[1751527179824,1.74109805,109370.0,109360.0,0.0094773]
[1751527180878,1.64966112,109370.0,109360.0,0.0094773]
[1751527195753,1.0304657,109370.0,109360.0,0.0094773]
[1751527195954,1.63316112,109370.0,109360.0,0.0094773]
[1751527196505,1.40164112,109370.0,109360.0,0.0094773]
[1751527196965,1.63340112,109370.0,109360.0,0.0094773]
[1751527200456,1.31591341,109370.0,109360.0,0.0094773]
[1751527200686,1.61726112,109370.0,109360.0,0.0094773]
[1751527202588,1.63336112,109370.0,109360.0,0.0094773]
[1751527204788,1.74049805,109370.0,109360.0,0.0094773]
[1751527206927,1.74041805,109370.0,109360.0,0.0094773]
[1751527207520,1.64898112,109370.0,109360.0,0.0094773]
[1751527211939,1.64898112,109370.0,109340.0,0.0002]
[1751527211940,5.72298824,109350.0,109340.0,0.0002]
[1751527212152,6.60316059,109350.0,109340.0,0.0002]
[1751527212326,6.64876059,109350.0,109340.0,0.0002]
[1751527212535,1.31561288,109350.0,109340.0,0.0002]
[1751527213319,1.31608077,109350.0,109340.0,0.0002]
[1751527213556,1.30693625,109350.0,109340.0,0.0002]
[1751527214185,1.30693625,109350.0,109340.0,0.0012]
[1751527214387,0.45019412,109350.0,109340.0,0.0328]
[1751527214563,1.00032989,109350.0,109340.0,0.0338]
[1751527215322,0.81743087,109350.0,109340.0,0.0338]
[1751527215725,0.82657581,109350.0,109340.0,0.0338]
[1751527216161,0.51608316,109350.0,109340.0,0.0338]
[1751527216291,0.47743079,109350.0,109340.0,0.0338]
[1751527216700,0.46828593,109350.0,109340.0,0.0338]
[1751527216884,0.45914132,109350.0,109340.0,0.0338]
[1751527217249,0.46828601,109350.0,109340.0,0.0338]
[1751527217401,0.4682861,109350.0,109340.0,0.0338]
[1751527217960,0.45914132,109350.0,109340.0,0.0338]
[1751527218155,0.46828601,109350.0,109340.0,0.0338]
[1751527218404,0.46828601,109350.0,109320.0,0.29618694]
[1751527218830,0.66347087,109350.0,109320.0,0.29618694]
[1751527219116,0.65432601,109350.0,109320.0,0.29618694]
[1751527219437,0.63603689,109350.0,109320.0,0.29618694]
[1751527219648,0.65432577,109350.0,109320.0,0.29618694]
[1751527219856,0.6543256,109350.0,109320.0,0.30134771]
[1751527220083,0.66347029,109350.0,109320.0,0.30134771]
[1751527220258,0.6543256,109350.0,109320.0,0.30134771]
[1751527220464,0.66347029,109350.0,109320.0,0.30134771]
[1751527220766,0.66447029,109350.0,109320.0,0.30234771]
[1751527221135,0.6553256,109350.0,109320.0,0.30234771]
[1751527221346,0.6553256,109350.0,109330.0,0.031]
[1751527221773,0.64618108,109350.0,109330.0,0.031]
[1751527221986,0.65332552,109350.0,109330.0,0.031]
[1751527222156,0.66147013,109350.0,109330.0,0.031]
[1751527222552,0.67061482,109350.0,109330.0,0.031]
[1751527222778,0.67361482,109350.0,109330.0,0.031]
[1751527223094,0.67061482,109350.0,109330.0,0.031]
[1751527223520,0.67461482,109350.0,109330.0,0.033]
[1751527224369,0.30134771,109340.0,109330.0,0.033]
[1751527225285,0.30134771,109340.0,109330.0,0.032]
[1751527225691,0.30134771,109340.0,109330.0,0.031]
[1751527225895,0.30234771,109340.0,109330.0,0.032]
[1751527226110,0.001,109340.0,109330.0,0.032]
[1751527226315,0.30234771,109340.0,109330.0,0.032]
[1751527228983,0.001,109340.0,109330.0,0.032]
[1751527229185,0.002,109340.0,109330.0,0.33534771]
[1751527229571,0.002,109340.0,109330.0,0.034]
[1751527231441,0.002,109340.0,109330.0,0.33534771]
[1751527231644,0.002,109340.0,109330.0,0.034]
[1751527232691,0.002,109340.0,109330.0,0.33534771]
[1751527232887,0.002,109340.0,109330.0,0.034]
[1751527233413,0.002,109340.0,109330.0,0.33534771]
[1751527235443,0.002,109340.0,109330.0,0.52138771]
[1751527244945,0.0024,109340.0,109330.0,0.52138771]
[1751527247661,0.0024,109340.0,109330.0,0.49038771]
[1751527248923,0.0024,109340.0,109330.0,1.11719756]
[1751527249213,0.0024,109340.0,109330.0,1.12634359]
[1751527249377,0.0024,109340.0,109330.0,1.54383359]
[1751527249808,0.0004,109340.0,109330.0,1.55537444]
[1751527250018,0.0004,109340.0,109330.0,1.55837444]
[1751527250337,0.0024,109340.0,109330.0,1.56037444]
[1751527251429,0.0014,109340.0,109330.0,1.55837444]
[1751527252294,0.0024,109340.0,109330.0,1.56137444]
[1751527253615,0.0024,109340.0,109330.0,0.95867902]
[1751527253815,0.0024,109340.0,109330.0,1.56137444]
[1751527265840,0.0024,109340.0,109330.0,1.86272215]
[1751527266267,0.0024,109340.0,109330.0,1.56137444]
[1751527266993,0.0024,109340.0,109330.0,1.95820215]
[1751527267407,0.0024,109340.0,109330.0,2.25320215]
[1751527268922,0.01261731,109360.0,109350.0,0.54118841]
[1751527269140,0.02761731,109360.0,109350.0,1.42124076]
[1751527269362,0.02761731,109360.0,109350.0,1.55640568]
[1751527269557,0.00679028,109360.0,109350.0,1.56496047]
[1751527269759,0.00679028,109360.0,109350.0,1.29109976]
[1751527269968,0.00679028,109360.0,109350.0,1.29110054]
[1751527270190,0.00679028,109360.0,109350.0,1.29210054]
[1751527270398,0.01079028,109360.0,109350.0,1.25559661]
[1751527270601,0.01079028,109360.0,109350.0,1.29210859]
[1751527270801,0.01079028,109360.0,109350.0,1.29219529]
[1751527271009,0.00979028,109360.0,109350.0,1.31048459]
[1751527271429,0.00979028,109360.0,109350.0,0.99999227]
[1751527271639,0.00979028,109360.0,109350.0,1.00913688]
[1751527271845,0.00979028,109360.0,109350.0,0.99084758]
[1751527272061,0.00979028,109360.0,109350.0,0.99999676]
[1751527272275,0.00979028,109360.0,109350.0,1.31048916]
[1751527272482,0.02289028,109360.0,109350.0,1.28212662]
[1751527272686,0.02389028,109360.0,109350.0,1.28412662]
[1751527272894,0.02389028,109360.0,109350.0,1.28612662]
[1751527273314,0.02389028,109360.0,109350.0,1.27698201]
[1751527273534,0.02389028,109360.0,109350.0,1.28612662]
[1751527274075,0.02389028,109360.0,109350.0,1.27698201]
[1751527274285,0.00779028,109360.0,109350.0,1.27698201]
[1751527274514,0.02299028,109360.0,109350.0,1.28612662]
[1751527274723,0.02299028,109360.0,109350.0,1.58747433]
[1751527274936,0.02299028,109360.0,109350.0,1.57832972]
[1751527275153,0.02299028,109360.0,109350.0,1.56918503]
[1751527275370,0.02289028,109360.0,109350.0,1.24954768]
[1751527275580,0.01098912,109360.0,109350.0,1.06669332]
[1751527276203,0.01098912,109360.0,109350.0,1.06670484]
[1751527277105,0.01098912,109360.0,109350.0,1.04101807]
[1751527277362,0.0004,109370.0,109350.0,1.06671274]
[1751527277592,0.0004,109370.0,109360.0,0.52382334]
[1751527277799,0.0004,109370.0,109360.0,0.54951801]
[1751527278232,0.0004,109370.0,109360.0,0.2481703]
[1751527278440,0.30174771,109370.0,109360.0,0.2481703]
[1751527278656,0.31694771,109370.0,109360.0,0.2481703]
[1751527278895,0.31894771,109370.0,109360.0,0.2491703]
[1751527279316,0.0176,109370.0,109360.0,0.2491703]
[1751527279552,0.3100216,109370.0,109360.0,0.2491703]
[1751527279990,0.3100216,109370.0,109360.0,0.0632503]
[1751527280210,0.3100216,109370.0,109360.0,0.2491303]
[1751527280434,0.02557389,109370.0,109360.0,0.30392986]
[1751527280651,0.02557389,109370.0,109360.0,0.30406175]
[1751527281080,0.02457389,109370.0,109360.0,0.30406175]
[1751527281296,0.02557389,109370.0,109360.0,0.30406175]
[1751527281506,0.31502012,109370.0,109360.0,0.30406175]
[1751527282322,0.31502012,109370.0,109360.0,0.30410426]
[1751527284019,0.30906938,109370.0,109360.0,0.30410426]
[1751527284575,0.32466938,109370.0,109360.0,0.30410426]
[1751527286281,0.02332167,109370.0,109360.0,0.30410426]
[1751527286707,0.02332167,109370.0,109360.0,0.60545197]
[1751527288286,0.001,109370.0,109360.0,0.30410426]
[1751527288503,0.001,109370.0,109360.0,0.60545197]
[1751527288962,0.0165,109370.0,109360.0,0.60545197]
[1751527289379,0.0323,109370.0,109360.0,0.30410426]
[1751527289585,0.02337411,109370.0,109360.0,0.60545197]
[1751527291067,0.02337411,109370.0,109360.0,0.30410426]
[1751527291270,0.0158,109370.0,109360.0,0.60545197]
[1751527291502,0.0158,109370.0,109360.0,0.58829381]
[1751527291706,0.31634771,109380.0,109360.0,0.58829381]
[1751527291902,0.31634771,109380.0,109370.0,0.02745444]
[1751527292076,0.31634771,109380.0,109370.0,0.03603346]
[1751527292500,0.33294771,109380.0,109370.0,0.03603346]
[1751527292964,0.33594771,109380.0,109370.0,0.03703346]
[1751527293149,0.33594771,109380.0,109370.0,0.03711978]
[1751527293300,0.34508939,109380.0,109370.0,0.03711978]
[1751527293506,0.33594771,109380.0,109370.0,0.03711978]
[1751527294189,0.33594771,109380.0,109370.0,0.07371461]
[1751527294395,0.33494771,109380.0,109370.0,0.07371461]
[1751527294807,0.33694771,109380.0,109370.0,0.07371461]
[1751527296779,0.33734771,109380.0,109370.0,0.07371461]
[1751527297480,0.33734771,109380.0,109370.0,0.07371564]
[1751527298586,0.33734771,109380.0,109370.0,0.07371562]
[1751527299034,0.33734771,109380.0,109370.0,0.09087569]
[1751527299674,0.036,109380.0,109370.0,0.09087569]
[1751527299890,0.33734771,109380.0,109370.0,0.09087569]
[1751527300377,0.036,109380.0,109370.0,0.09087569]
[1751527300595,0.33734771,109380.0,109370.0,0.09087569]
[1751527301961,0.036,109380.0,109370.0,0.09087569]
[1751527302168,0.33734771,109380.0,109370.0,0.09087759]
[1751527302380,0.036,109380.0,109370.0,0.09087759]
[1751527302590,0.33734771,109380.0,109370.0,0.09087759]
[1751527303993,0.34648948,109380.0,109370.0,0.09087759]
[1751527304789,0.33734771,109380.0,109370.0,0.0908772]
[1751527304993,0.34648939,109380.0,109370.0,0.0908772]
[1751527306225,0.33734771,109380.0,109370.0,0.0908772]
[1751527308002,0.63869542,109380.0,109370.0,0.0908772]
[1751527308554,0.036,109380.0,109370.0,0.0908772]
[1751527308753,0.33734771,109380.0,109370.0,0.0908772]
[1751527308982,0.036,109380.0,109370.0,0.09087686]
[1751527309240,0.33734771,109380.0,109370.0,0.09087686]
[1751527309649,0.63869542,109380.0,109370.0,0.09087686]
[1751527309785,0.036,109380.0,109370.0,0.09087686]
[1751527309981,0.64783719,109380.0,109370.0,0.09087686]
[1751527310413,0.63869542,109380.0,109370.0,0.09087686]
[1751527310622,0.6478371,109380.0,109370.0,0.09087686]
[1751527310832,0.63869542,109380.0,109370.0,0.09087686]
[1751527311363,0.33734771,109380.0,109370.0,0.09087686]
[1751527311566,0.30574771,109380.0,109370.0,0.09087686]
[1751527313700,0.30574771,109380.0,109370.0,0.09107686]
[1751527314325,0.32194771,109380.0,109370.0,0.09107686]
[1751527314530,0.33108939,109380.0,109370.0,0.09107686]
[1751527314736,0.32194771,109380.0,109370.0,0.09107686]
[1751527315976,0.33108939,109380.0,109370.0,0.09107793]
[1751527316186,0.33774771,109380.0,109370.0,0.09107793]
[1751527316824,0.32194771,109380.0,109370.0,0.09107793]
[1751527317248,0.30574771,109380.0,109370.0,0.09107793]
[1751527317452,0.0044,109380.0,109370.0,0.09107793]
[1751527317695,0.30574771,109380.0,109370.0,0.09107793]
[1751527319761,0.0044,109380.0,109370.0,0.09107793]
[1751527320004,0.30574771,109380.0,109370.0,0.09107793]
[1751527320993,0.60709542,109380.0,109370.0,0.09107793]
[1751527321252,0.60709542,109380.0,109370.0,0.09108008]
[1751527321503,0.30574771,109380.0,109370.0,0.09108008]
[1751527322935,0.60709542,109380.0,109370.0,0.09108008]
[1751527326462,0.63233727,109380.0,109370.0,0.09108008]
[1751527326716,0.45124525,109390.0,109370.0,0.7910419]
[1751527326717,0.0004,109390.0,109370.0,0.7910419]
[1751527326957,0.0004,109390.0,109380.0,1.08349793]
[1751527327162,0.0004,109390.0,109380.0,1.6756874]
[1751527327385,0.0004,109390.0,109380.0,1.62713474]
[1751527327605,0.0004,109390.0,109380.0,1.75032441]
[1751527327826,0.0004,109390.0,109380.0,1.54330308]
[1751527328048,0.0004,109390.0,109380.0,1.36664518]
[1751527328267,0.0014,109390.0,109380.0,1.64403931]
[1751527328486,0.0004,109390.0,109380.0,1.64103931]
[1751527328706,0.0004,109390.0,109380.0,1.44609754]
[1751527328942,0.0004,109390.0,109380.0,1.42781301]
[1751527329164,0.0004,109390.0,109380.0,1.63189762]
[1751527329453,0.0004,109390.0,109380.0,1.62387897]
[1751527329674,0.0004,109390.0,109380.0,1.64216292]
[1751527329894,0.0014,109390.0,109380.0,1.59805384]
[1751527330109,0.0014,109390.0,109380.0,1.60719602]
[1751527330327,0.0014,109390.0,109380.0,1.59805384]
[1751527330543,0.0014,109390.0,109380.0,1.61633829]
[1751527330787,0.0014,109390.0,109380.0,1.40606263]
[1751527331045,0.0024,109390.0,109380.0,0.48113028]
[1751527331271,0.0024,109390.0,109380.0,0.76414532]
[1751527331511,0.0024,109390.0,109380.0,0.61759761]
[1751527332008,0.0024,109390.0,109380.0,0.43179761]
[1751527332228,0.31904771,109390.0,109380.0,0.10958502]
[1751527332451,0.0177,109390.0,109380.0,0.06343363]
[1751527332669,0.44456675,109390.0,109380.0,0.09078232]
[1751527332894,0.44456675,109390.0,109380.0,0.05431691]
[1751527333110,0.64568176,109390.0,109380.0,0.05431691]
[1751527333334,0.4618497,109390.0,109380.0,0.0493165]
[1751527333556,0.4608497,109390.0,109380.0,0.0423165]
[1751527333766,0.92774736,109390.0,109380.0,0.0483165]
[1751527333975,0.64750862,109390.0,109380.0,0.0523165]
[1751527334193,0.64650862,109390.0,109380.0,0.0463165]
[1751527334824,0.64650862,109390.0,109380.0,0.0493165]
[1751527335277,0.64650862,109390.0,109380.0,0.0453165]
[1751527335486,0.64550862,109390.0,109380.0,0.0453165]
[1751527336214,0.64050862,109390.0,109380.0,0.0423165]
[1751527336462,0.64050862,109390.0,109380.0,0.0433165]
[1751527336704,0.64150862,109390.0,109380.0,0.0453165]
[1751527337911,0.64150862,109390.0,109380.0,0.01796852]
[1751527343945,0.63236727,109390.0,109380.0,0.01796852]
[1751527345167,0.60586727,109390.0,109380.0,0.01796852]
[1751527345405,0.60586727,109390.0,109380.0,0.01796161]
[1751527345555,0.61500862,109390.0,109380.0,0.01796161]
[1751527345951,0.001,109390.0,109380.0,0.01796161]
[1751527346161,0.001,109390.0,109380.0,0.03426161]
[1751527346366,0.32245668,109390.0,109380.0,0.03426161]
[1751527346792,0.32245668,109390.0,109380.0,0.04071212]
[1751527347246,0.001,109390.0,109380.0,0.04071212]
[1751527348032,0.001,109390.0,109380.0,0.04091212]
[1751527348223,0.0014,109390.0,109380.0,0.04091212]
[1751527349050,0.32285668,109390.0,109380.0,0.04091212]
[1751527349275,0.0014,109390.0,109380.0,0.04091212]
[1751527349563,0.32285668,109390.0,109380.0,0.04091212]
[1751527350766,0.32285668,109390.0,109380.0,0.04946301]
[1751527351593,0.0014,109390.0,109380.0,0.04946301]
[1751527352999,0.0014,109390.0,109380.0,0.0682601]
[1751527355226,0.0014,109390.0,109380.0,0.10472551]
[1751527357722,0.0014,109390.0,109380.0,0.1047293]
[1751527360158,0.0014,109390.0,109380.0,0.07738132]
[1751527360784,0.32285668,109390.0,109380.0,0.07738132]
[1751527362200,0.32285668,109390.0,109380.0,0.13207818]
[1751527363899,0.0014,109390.0,109380.0,0.13207818]
[1751527364972,0.0014,109390.0,109380.0,0.13208841]
[1751527365577,0.0014,109390.0,109380.0,0.13208818]
[1751527367019,0.32285668,109390.0,109380.0,0.13208818]
[1751527367365,0.32285668,109390.0,109380.0,0.04609132]
[1751527367569,0.65594879,109390.0,109380.0,0.07351038]
[1751527367785,0.66509022,109390.0,109380.0,0.07351038]
[1751527367993,0.67423182,109390.0,109380.0,0.08207856]
[1751527368343,0.67423182,109390.0,109380.0,0.04561315]
[1751527368745,0.67423182,109390.0,109380.0,0.01819409]
[1751527368950,0.67423182,109390.0,109380.0,0.04561347]
[1751527369149,0.67423182,109390.0,109380.0,0.08207888]
[1751527369386,0.66509088,109390.0,109380.0,0.08207888]
[1751527369594,0.66509088,109390.0,109380.0,0.04561347]
[1751527370220,0.64680861,109390.0,109380.0,0.04561347]
[1751527370424,0.63766718,109390.0,109380.0,0.04561347]
[1751527374275,0.62852567,109390.0,109380.0,0.04561347]
[1751527378196,0.63766718,109390.0,109380.0,0.04561347]
[1751527378410,0.64680844,109390.0,109380.0,0.04561347]
[1751527384205,0.64680844,109390.0,109380.0,0.03704529]
[1751527384608,0.63995004,109390.0,109380.0,0.04561432]
[1751527385863,0.61983128,109390.0,109380.0,0.04561432]
[1751527386054,0.59817762,109390.0,109380.0,0.04561432]
[1751527386272,0.61646006,109390.0,109380.0,0.04561432]
[1751527386416,0.79929212,109390.0,109380.0,0.04561432]
[1751527386823,0.61646006,109390.0,109380.0,0.04561432]
[1751527387228,0.41245712,109390.0,109380.0,0.04561432]
[1751527387443,0.59817712,109390.0,109380.0,0.06071432]
[1751527387753,0.60731855,109390.0,109380.0,0.06071432]
[1751527388553,0.61646006,109390.0,109380.0,0.04561432]
[1751527388791,0.79929212,109390.0,109380.0,0.04561432]
[1751527388947,0.61646006,109390.0,109380.0,0.04561432]
[1751527389390,0.43074006,109390.0,109380.0,0.04561432]
[1751527389742,0.43074006,109390.0,109380.0,0.04561498]
[1751527391015,0.41245712,109390.0,109380.0,0.04561498]
[1751527391399,0.42159855,109390.0,109380.0,0.04561498]
[1751527391603,0.61357221,109390.0,109380.0,0.04561498]
[1751527393217,0.42159855,109390.0,109380.0,0.04561498]
[1751527393431,0.43074015,109390.0,109380.0,0.04561498]
[1751527394671,0.43074006,109390.0,109380.0,0.04561498]
[1751527395353,0.61357212,109390.0,109380.0,0.04561498]
[1751527395565,0.43074006,109390.0,109380.0,0.04561498]
[1751527397213,0.61357212,109390.0,109380.0,0.04561498]
[1751527398151,0.43074006,109390.0,109380.0,0.04561498]
[1751527398559,0.43988166,109390.0,109380.0,0.04561498]
[1751527398982,0.43074006,109390.0,109380.0,0.04561498]
[1751527399184,0.79925212,109390.0,109380.0,0.04561498]
[1751527399596,0.80839372,109390.0,109380.0,0.04561498]
[1751527399827,0.31508214,109390.0,109380.0,0.04561498]
[1751527400045,0.60727855,109390.0,109380.0,0.04561498]
[1751527400283,0.79925221,109390.0,109380.0,0.04561498]
[1751527400489,0.7901112,109390.0,109380.0,0.04561498]
[1751527400925,0.29679962,109390.0,109380.0,0.06161498]
[1751527401133,0.60727914,109390.0,109380.0,0.06161498]
[1751527401336,0.41245754,109390.0,109380.0,0.06162471]
[1751527401537,0.42159914,109390.0,109380.0,0.06166449]
[1751527401938,0.6044312,109390.0,109380.0,0.06166449]
[1751527402354,0.5952896,109390.0,109380.0,0.06166449]
[1751527403173,0.6044312,109390.0,109380.0,0.06166449]
[1751527404205,0.41245754,109390.0,109380.0,0.06166449]
[1751527404411,0.42159855,109390.0,109380.0,0.06166449]
[1751527405041,0.42159847,109390.0,109380.0,0.06166449]
[1751527406107,0.43073998,109390.0,109380.0,0.07676449]
[1751527406316,0.42159847,109390.0,109380.0,0.07676449]
[1751527407113,0.4307399,109390.0,109380.0,0.07676449]
[1751527407317,0.4307399,109390.0,109380.0,0.06166449]
[1751527407528,0.62271356,109390.0,109380.0,0.06166449]
[1751527407716,0.61357255,109390.0,109380.0,0.04566449]
[1751527408705,0.42159889,109390.0,109380.0,0.04566449]
[1751527408905,0.43074049,109390.0,109380.0,0.04566449]
[1751527409318,0.61357255,109390.0,109380.0,0.04566449]
[1751527410743,0.91491047,109390.0,109380.0,0.04566449]
[1751527412074,0.91491047,109390.0,109380.0,0.0456747]
[1751527413096,0.90576921,109390.0,109380.0,0.0456747]
[1751527421268,0.90576921,109390.0,109380.0,0.04567491]
[1751527422066,0.30309337,109390.0,109380.0,0.04567491]
[1751527422420,0.60443129,109390.0,109380.0,0.04567491]
[1751527425165,0.59528994,109390.0,109380.0,0.04567491]
[1751527426353,0.89662786,109390.0,109380.0,0.04567491]
[1751527427128,0.88748643,109390.0,109380.0,0.04567491]
[1751527427455,0.87834483,109390.0,109380.0,0.04567491]
[1751527430490,0.87834483,109390.0,109380.0,0.0456754]